{"text_format":"1","workbook":"xlsx","n_sheets":7,"sheets":["Planlegging av risikovurdering","Vurderingskriteringene","Risikoskjema","Eksempel","Tiltaksplan","Risikomatrise","Setup"],"not_rendered":{"charts":0,"images":0,"macros":1,"external_links":0,"defined_names":4,"comments":3,"pivot_tables":0},"unopened":[],"bounds":{"document_bytes":16777216,"sheet_cells":100000,"rows_first":2000,"rows_last":500,"rows_between":2000,"halvings":0,"cell_chars":16384,"cell_head_chars":4096},"cells_cut":0,"cells_raw":0,"read":"whole","date_system":"1900"}

{"sheet":"Planlegging av risikovurdering","index":0,"n_rows":23,"n_cols":3,"rows_kept":23,"cut":false,"hidden":false,"merged":[[0,1,0,2],[1,1,1,2],[3,1,3,2],[8,1,8,2]]}
[null,"Planlegging av risikovurdering i Ringerike kommune"]
[null,"Arbeidsplass:"]
[null,"Planleggingen er gjennomført av:\nHa med både navn og HMS-rolle (leder, verneombud osv)."]
[null,"Rammer for risikovurderingen"]
[null,"Bakgrunn for risikovurderingen"]
[null,"Formål med risikovurderingen"]
[null,"Avgrensning"]
[null,"Tidsramme, tidspunkt"]
[null,"Fremgangsmåte for risikovurderingen"]
[null,"Hvordan kartlegges uønskede hendelser?"]
[null,"Risikovurderingsverktøy"]
[null,"Valg av akseptkriterier"]
[null,"Skal det tas hensyn til eksisterende risikoreduserende tiltak?"]
[null,"Arbeidsgruppe\n"]
[null,"Fordeling av roller/oppgaver:\n"]
[null,"1. Lede prosessen","1."]
[null,"2. Skrivearbeid underveis","2."]
[null,"3. Innhenting av informasjon","3."]
[null,"4. Informasjon til ansatte","4."]
[null,"Dokumentasjon"]
[null,"Verifikasjon"]
[null,"Oppfølging av tiltaksplan\n"]
[null,"Annet"]

{"sheet":"Vurderingskriteringene","index":1,"n_rows":35,"n_cols":7,"rows_kept":35,"cut":false,"hidden":true,"merged":[[4,1,4,2],[14,1,14,2],[15,1,17,1],[15,2,17,2],[18,1,21,1],[18,2,21,2],[22,1,25,1],[22,2,25,2],[26,1,29,1],[26,2,29,2],[30,1,33,1],[30,2,33,2]]}
[]
[]
[]
[]
[null,"Sannsynlighet",null,"Beskrivelse"]
[null,1,"Lite sannsynlig","Vil sannsynligvis ikke skje. Har aldri hørt om."]
[null,2,"Mindre sannsynlig","Vil sannsynligvis ikke skje. Har hørt om."]
[null,3,"Sannsynlig","Vil kunne skje en eller flere ganger i tidsperioden. "]
[null,4,"Meget sannsynlig","Vil kunne skje flere ganger i året."]
[null,5,"Svært sannsynlig","Vil kunne skje ukentlig/daglig."]
[]
[]
[]
[]
[null,"Konsekvens",null,"Helse, miljø og sikkerhet (Inklusiv Psykososialt arbeidsmiljø)","Pasient/Brukersikkerhet","Økonomi","IT og informasjonssikkerhet"]
[null,1,"Ubetydelig","Ubetydelig personskade/slitenhet.","Små enkelt personskader/sykdom","Ubetydelig for budsjett","Lite, opprettelig økonomisk tap"]
[null,null,null,"Påvirker ikke prestasjonsnivået.",null,"Mindre enn 10 000 kr","Opplysninger kan ha kommet på avveie"]
[null,null,null,"Ikke fravær. "]
[null,2,"Mindre alvorlig","Mindre forbigående personskade/slitenhet/sykdom.",null,"Minimal effekt for budsjett","Lite, opprettelig økonomisk tap"]
[null,null,null,"Kortvarig belastning på arbeidsmiljøet.","Flere små personskader/sykdommer","10.000 - 100.000 kr","Følsomme opplysninger på avveie"]
[null,null,null,"Påvirker prestasjonsnivået i liten grad for enkelte."]
[null,null,null,"Fravær maks tre dager. "]
[null,3,"Alvorlig","Betydelig personskade/sykdom/utmattelse/psykisk reaksjon.",null,"Små konsekvenser for økonomi og for tjenestetilbudet","Betydelig men opprettelig økonomisk tap"]
[null,null,null,"Alvorlig, langvarig belastning på arbeidsmiljøet.","Alvorlig enkeltpersonskader/sykdom","1oo.ooo - 1 millioner kr","Tap av anseelse eller integritet"]
[null,null,null,"Påvirker prestasjonsnivået for flere.",null,null,"Personopplysninger på avveie"]
[null,null,null,"Kan gi lengre fravær. "]
[null,4,"Kritisk","Flere enkelttilfeller av langvarige helseplager.",null,"Alvorlige konsekvenser for budsjett og tjenestetilbud","Tap av helse"]
[null,null,null,"Vedvarende, stor og langvarig belastning på arbeidsmiljøet.  ","Flere alvorlige skader/sykdommer","1 - 5 millioner kr","Uopprettelig økonomisk tap"]
[null,null,null,"Flere langtidssykemeldte.",null,null,"Uopprettelig tap av helse eller integritet"]
[null,null,null,"Påvirker prestasjonsnivået for hele avdelingen.",null,null,"Personopplysninger på avveie"]
[null,5,"Meget kritisk","Dødsfall.","Mange alvorlige skadde/syke","Dramatiske konsekvenser for budsjett og tjenestetilbud","Tap av liv"]
[null,null,null,"Mange alvorlig, langvarige syke.","Dødsfall","Mer enn 5 millioner kr","Vedvarende helsetap"]
[null,null,null,"Stor mistrivsel med omfattende effekt på miljøet.",null,null,"Betydelig og uopprettelig økonomisk tap"]
[null,null,null,"Prestasjonsnivået for avdelingen er betydelig nedsatt.",null,null,"Alvorlig tap av anseelse og integritet"]
[null,null,null,null,null,null,"Personopplysninger på avveie"]

{"sheet":"Risikoskjema","index":2,"n_rows":28,"n_cols":11,"rows_kept":28,"cut":false,"hidden":false,"merged":[[12,14,15,16]]}
[]
[]
[]
[]
[]
[]
["NR","Risiko beskrivelse","Eksisterende risikoreduserende tiltak","Begrunnelse for konsekvensvurdering","Konsekvens","Sannsynlighet","Begrunnelse for vurdering av tilhørende sannsynlighet","Risiko","Aksepterbar risiko","SearchString","Display Name"]
[1,null,null,null,null,null,null,{"$f":"IF(PRODUCT(E8:F8)>0,PRODUCT(E8,F8),0)","v":0},null,{"$f":"IF(PRODUCT(E8:F8)>0,CONCATENATE(\"x\",tblRiskData[Sannsynlighet]^4+tblRiskData[Konsekvens]),\"\")","v":""},{"$f":"CONCATENATE(tblRiskData[NR],\" \",LEFT(tblRiskData[Risiko beskrivelse],20),IF(LEN(tblRiskData[Risiko beskrivelse])>20,\"…\",\"\"))","v":"1 "}]
[2,null,null,null,null,null,null,0,null,{"$f":"IF(PRODUCT(E9:F9)>0,CONCATENATE(\"x\",tblRiskData[Sannsynlighet]^4+tblRiskData[Konsekvens]),\"\")","v":""},{"$f":"CONCATENATE(tblRiskData[NR],\" \",LEFT(tblRiskData[Risiko beskrivelse],20),IF(LEN(tblRiskData[Risiko beskrivelse])>20,\"…\",\"\"))","v":"2 "}]
[3,null,null,null,null,null,null,0,null,{"$f":"IF(PRODUCT(E10:F10)>0,CONCATENATE(\"x\",tblRiskData[Sannsynlighet]^4+tblRiskData[Konsekvens]),\"\")","v":""},{"$f":"CONCATENATE(tblRiskData[NR],\" \",LEFT(tblRiskData[Risiko beskrivelse],20),IF(LEN(tblRiskData[Risiko beskrivelse])>20,\"…\",\"\"))","v":"3 "}]
[4,null,null,null,null,null,null,0,null,{"$f":"IF(PRODUCT(E11:F11)>0,CONCATENATE(\"x\",tblRiskData[Sannsynlighet]^4+tblRiskData[Konsekvens]),\"\")","v":""},{"$f":"CONCATENATE(tblRiskData[NR],\" \",LEFT(tblRiskData[Risiko beskrivelse],20),IF(LEN(tblRiskData[Risiko beskrivelse])>20,\"…\",\"\"))","v":"4 "}]
[5,null,null,null,null,null,null,0,null,{"$f":"IF(PRODUCT(E12:F12)>0,CONCATENATE(\"x\",tblRiskData[Sannsynlighet]^4+tblRiskData[Konsekvens]),\"\")","v":""},{"$f":"CONCATENATE(tblRiskData[NR],\" \",LEFT(tblRiskData[Risiko beskrivelse],20),IF(LEN(tblRiskData[Risiko beskrivelse])>20,\"…\",\"\"))","v":"5 "}]
[6,null,null,null,null,null,null,0,null,{"$f":"IF(PRODUCT(E13:F13)>0,CONCATENATE(\"x\",tblRiskData[Sannsynlighet]^4+tblRiskData[Konsekvens]),\"\")","v":""},{"$f":"CONCATENATE(tblRiskData[NR],\" \",LEFT(tblRiskData[Risiko beskrivelse],20),IF(LEN(tblRiskData[Risiko beskrivelse])>20,\"…\",\"\"))","v":"6 "}]
[7,null,null,null,null,null,null,0,null,{"$f":"IF(PRODUCT(E14:F14)>0,CONCATENATE(\"x\",tblRiskData[Sannsynlighet]^4+tblRiskData[Konsekvens]),\"\")","v":""},{"$f":"CONCATENATE(tblRiskData[NR],\" \",LEFT(tblRiskData[Risiko beskrivelse],20),IF(LEN(tblRiskData[Risiko beskrivelse])>20,\"…\",\"\"))","v":"7 "}]
[8,null,null,null,null,null,null,0,null,{"$f":"IF(PRODUCT(E15:F15)>0,CONCATENATE(\"x\",tblRiskData[Sannsynlighet]^4+tblRiskData[Konsekvens]),\"\")","v":""},{"$f":"CONCATENATE(tblRiskData[NR],\" \",LEFT(tblRiskData[Risiko beskrivelse],20),IF(LEN(tblRiskData[Risiko beskrivelse])>20,\"…\",\"\"))","v":"8 "}]
[9,null,null,null,null,null,null,0,null,{"$f":"IF(PRODUCT(E16:F16)>0,CONCATENATE(\"x\",tblRiskData[Sannsynlighet]^4+tblRiskData[Konsekvens]),\"\")","v":""},{"$f":"CONCATENATE(tblRiskData[NR],\" \",LEFT(tblRiskData[Risiko beskrivelse],20),IF(LEN(tblRiskData[Risiko beskrivelse])>20,\"…\",\"\"))","v":"9 "}]
[10,null,null,null,null,null,null,0,null,{"$f":"IF(PRODUCT(E17:F17)>0,CONCATENATE(\"x\",tblRiskData[Sannsynlighet]^4+tblRiskData[Konsekvens]),\"\")","v":""},{"$f":"CONCATENATE(tblRiskData[NR],\" \",LEFT(tblRiskData[Risiko beskrivelse],20),IF(LEN(tblRiskData[Risiko beskrivelse])>20,\"…\",\"\"))","v":"10 "}]
[11,null,null,null,null,null,null,0,null,{"$f":"IF(PRODUCT(E18:F18)>0,CONCATENATE(\"x\",tblRiskData[Sannsynlighet]^4+tblRiskData[Konsekvens]),\"\")","v":""},{"$f":"CONCATENATE(tblRiskData[NR],\" \",LEFT(tblRiskData[Risiko beskrivelse],20),IF(LEN(tblRiskData[Risiko beskrivelse])>20,\"…\",\"\"))","v":"11 "}]
[12,null,null,null,null,null,null,0,null,{"$f":"IF(PRODUCT(E19:F19)>0,CONCATENATE(\"x\",tblRiskData[Sannsynlighet]^4+tblRiskData[Konsekvens]),\"\")","v":""},{"$f":"CONCATENATE(tblRiskData[NR],\" \",LEFT(tblRiskData[Risiko beskrivelse],20),IF(LEN(tblRiskData[Risiko beskrivelse])>20,\"…\",\"\"))","v":"12 "}]
[13,null,null,null,null,null,null,0,null,{"$f":"IF(PRODUCT(E20:F20)>0,CONCATENATE(\"x\",tblRiskData[Sannsynlighet]^4+tblRiskData[Konsekvens]),\"\")","v":""},{"$f":"CONCATENATE(tblRiskData[NR],\" \",LEFT(tblRiskData[Risiko beskrivelse],20),IF(LEN(tblRiskData[Risiko beskrivelse])>20,\"…\",\"\"))","v":"13 "}]
[14,null,null,null,null,null,null,0,null,{"$f":"IF(PRODUCT(E21:F21)>0,CONCATENATE(\"x\",tblRiskData[Sannsynlighet]^4+tblRiskData[Konsekvens]),\"\")","v":""},{"$f":"CONCATENATE(tblRiskData[NR],\" \",LEFT(tblRiskData[Risiko beskrivelse],20),IF(LEN(tblRiskData[Risiko beskrivelse])>20,\"…\",\"\"))","v":"14 "}]
[15,null,null,null,null,null,null,0,null,{"$f":"IF(PRODUCT(E22:F22)>0,CONCATENATE(\"x\",tblRiskData[Sannsynlighet]^4+tblRiskData[Konsekvens]),\"\")","v":""},{"$f":"CONCATENATE(tblRiskData[NR],\" \",LEFT(tblRiskData[Risiko beskrivelse],20),IF(LEN(tblRiskData[Risiko beskrivelse])>20,\"…\",\"\"))","v":"15 "}]
[16,null,null,null,null,null,null,0,null,{"$f":"IF(PRODUCT(E23:F23)>0,CONCATENATE(\"x\",tblRiskData[Sannsynlighet]^4+tblRiskData[Konsekvens]),\"\")","v":""},{"$f":"CONCATENATE(tblRiskData[NR],\" \",LEFT(tblRiskData[Risiko beskrivelse],20),IF(LEN(tblRiskData[Risiko beskrivelse])>20,\"…\",\"\"))","v":"16 "}]
[17,null,null,null,null,null,null,0,null,{"$f":"IF(PRODUCT(E24:F24)>0,CONCATENATE(\"x\",tblRiskData[Sannsynlighet]^4+tblRiskData[Konsekvens]),\"\")","v":""},{"$f":"CONCATENATE(tblRiskData[NR],\" \",LEFT(tblRiskData[Risiko beskrivelse],20),IF(LEN(tblRiskData[Risiko beskrivelse])>20,\"…\",\"\"))","v":"17 "}]
[18,null,null,null,null,null,null,0,null,{"$f":"IF(PRODUCT(E25:F25)>0,CONCATENATE(\"x\",tblRiskData[Sannsynlighet]^4+tblRiskData[Konsekvens]),\"\")","v":""},{"$f":"CONCATENATE(tblRiskData[NR],\" \",LEFT(tblRiskData[Risiko beskrivelse],20),IF(LEN(tblRiskData[Risiko beskrivelse])>20,\"…\",\"\"))","v":"18 "}]
[19,null,null,null,null,null,null,0,null,{"$f":"IF(PRODUCT(E26:F26)>0,CONCATENATE(\"x\",tblRiskData[Sannsynlighet]^4+tblRiskData[Konsekvens]),\"\")","v":""},{"$f":"CONCATENATE(tblRiskData[NR],\" \",LEFT(tblRiskData[Risiko beskrivelse],20),IF(LEN(tblRiskData[Risiko beskrivelse])>20,\"…\",\"\"))","v":"19 "}]
[20,null,null,null,null,null,null,0,null,{"$f":"IF(PRODUCT(E27:F27)>0,CONCATENATE(\"x\",tblRiskData[Sannsynlighet]^4+tblRiskData[Konsekvens]),\"\")","v":""},{"$f":"CONCATENATE(tblRiskData[NR],\" \",LEFT(tblRiskData[Risiko beskrivelse],20),IF(LEN(tblRiskData[Risiko beskrivelse])>20,\"…\",\"\"))","v":"20 "}]
[21,null,null,null,null,null,null,0,null,{"$f":"IF(PRODUCT(E28:F28)>0,CONCATENATE(\"x\",tblRiskData[Sannsynlighet]^4+tblRiskData[Konsekvens]),\"\")","v":""},{"$f":"CONCATENATE(tblRiskData[NR],\" \",LEFT(tblRiskData[Risiko beskrivelse],20),IF(LEN(tblRiskData[Risiko beskrivelse])>20,\"…\",\"\"))","v":"21 "}]

{"sheet":"Eksempel","index":3,"n_rows":3,"n_cols":9,"rows_kept":3,"cut":false,"hidden":true,"merged":[]}
[]
["NR","Risiko beskrivelse","Eksisterende risikoreduserende tiltak","Begrunnelse for konsekvensvurdering","Konsekvens","Sannsynlighet","Begrunnelse for vurdering av tilhørende sannsynlighet","Risiko","Er initiell risiko aksepterbar?"]
["Eksempel","Slag/spark (fysisk)","* Opplæring, bli kjent med den enkelte elev. \n* Rutiner for vold og trusler. \n* Avvikssystem med god oppfølging. \n* Støttesamtale hos BHT etter hendelser.","Fare for brudd og hevelser. Flere elever har vist utagerende adferd det siste året. Spesielt har dette vært rettet mot en av lærerne",3,3,"De siste tre årene har det vært et tilfelle av mer alvorlig karakter, hvor assistent fikk skade på tann etter slag i ansiktet.",{"$f":"PRODUCT(F3,E3)","v":9},"NEI"]

{"sheet":"Tiltaksplan","index":4,"n_rows":28,"n_cols":14,"rows_kept":28,"cut":false,"hidden":true,"merged":[[5,0,5,3],[3,0,3,4],[2,0,2,4]]}
[]
[]
["Tiltaksplan"]
["Tiltaksplanen utarbeides etter den initielle risikovurdering"]
[]
["Disse 4 er kopiert med fra risikovurderingen"]
["NR","Risiko beskrivelse","Risiko","Aksepterbar risiko","Tiltak / beskrivelse","Ansvar","Frist for igangsetting","Planlagt sluttdato","Ny_konsekvens ","Ny_sannsynlighet","Risiko2","Er risiko akseptabel","SearchString2","Display Name2"]
[null,null,null,null,null,null,null,null,null,null,{"$f":"IF(PRODUCT(I8:J8)>0,PRODUCT(I8,J8),0)","v":0},null,{"$f":"IF(PRODUCT(I8:J8)>0,CONCATENATE(\"x\",tblRiskData2[Ny_sannsynlighet]^4+tblRiskData2[Ny_konsekvens ]),\"\")","v":""},{"$f":"CONCATENATE(tblRiskData2[NR],\" \",LEFT(tblRiskData2[Risiko beskrivelse],20),IF(LEN(tblRiskData2[Risiko beskrivelse])>20,\"…\",\"\"))","v":" "}]
[null,null,null,null,null,null,null,null,null,null,0,null,{"$f":"IF(PRODUCT(I9:J9)>0,CONCATENATE(\"x\",tblRiskData2[Ny_sannsynlighet]^4+tblRiskData2[Ny_konsekvens ]),\"\")","v":""},{"$f":"CONCATENATE(tblRiskData2[NR],\" \",LEFT(tblRiskData2[Risiko beskrivelse],20),IF(LEN(tblRiskData2[Risiko beskrivelse])>20,\"…\",\"\"))","v":" "}]
[null,null,null,null,null,null,null,null,null,null,0,null,{"$f":"IF(PRODUCT(I10:J10)>0,CONCATENATE(\"x\",tblRiskData2[Ny_sannsynlighet]^4+tblRiskData2[Ny_konsekvens ]),\"\")","v":""},{"$f":"CONCATENATE(tblRiskData2[NR],\" \",LEFT(tblRiskData2[Risiko beskrivelse],20),IF(LEN(tblRiskData2[Risiko beskrivelse])>20,\"…\",\"\"))","v":" "}]
[null,null,null,null,null,null,null,null,null,null,0,null,{"$f":"IF(PRODUCT(I11:J11)>0,CONCATENATE(\"x\",tblRiskData2[Ny_sannsynlighet]^4+tblRiskData2[Ny_konsekvens ]),\"\")","v":""},{"$f":"CONCATENATE(tblRiskData2[NR],\" \",LEFT(tblRiskData2[Risiko beskrivelse],20),IF(LEN(tblRiskData2[Risiko beskrivelse])>20,\"…\",\"\"))","v":" "}]
[null,null,null,null,null,null,null,null,null,null,0,null,{"$f":"IF(PRODUCT(I12:J12)>0,CONCATENATE(\"x\",tblRiskData2[Ny_sannsynlighet]^4+tblRiskData2[Ny_konsekvens ]),\"\")","v":""},{"$f":"CONCATENATE(tblRiskData2[NR],\" \",LEFT(tblRiskData2[Risiko beskrivelse],20),IF(LEN(tblRiskData2[Risiko beskrivelse])>20,\"…\",\"\"))","v":" "}]
[null,null,null,null,null,null,null,null,null,null,0,null,{"$f":"IF(PRODUCT(I13:J13)>0,CONCATENATE(\"x\",tblRiskData2[Ny_sannsynlighet]^4+tblRiskData2[Ny_konsekvens ]),\"\")","v":""},{"$f":"CONCATENATE(tblRiskData2[NR],\" \",LEFT(tblRiskData2[Risiko beskrivelse],20),IF(LEN(tblRiskData2[Risiko beskrivelse])>20,\"…\",\"\"))","v":" "}]
[null,null,null,null,null,null,null,null,null,null,0,null,{"$f":"IF(PRODUCT(I14:J14)>0,CONCATENATE(\"x\",tblRiskData2[Ny_sannsynlighet]^4+tblRiskData2[Ny_konsekvens ]),\"\")","v":""},{"$f":"CONCATENATE(tblRiskData2[NR],\" \",LEFT(tblRiskData2[Risiko beskrivelse],20),IF(LEN(tblRiskData2[Risiko beskrivelse])>20,\"…\",\"\"))","v":" "}]
[null,null,null,null,null,null,null,null,null,null,{"$f":"IF(PRODUCT(I15:J15)>0,PRODUCT(I15,J15),0)","v":0},null,{"$f":"IF(PRODUCT(I15:J15)>0,CONCATENATE(\"x\",tblRiskData2[Ny_sannsynlighet]^4+tblRiskData2[Ny_konsekvens ]),\"\")","v":""},{"$f":"CONCATENATE(tblRiskData2[NR],\" \",LEFT(tblRiskData2[Risiko beskrivelse],20),IF(LEN(tblRiskData2[Risiko beskrivelse])>20,\"…\",\"\"))","v":" "}]
[null,null,null,null,null,null,null,null,null,null,0,null,{"$f":"IF(PRODUCT(I16:J16)>0,CONCATENATE(\"x\",tblRiskData2[Ny_sannsynlighet]^4+tblRiskData2[Ny_konsekvens ]),\"\")","v":""},{"$f":"CONCATENATE(tblRiskData2[NR],\" \",LEFT(tblRiskData2[Risiko beskrivelse],20),IF(LEN(tblRiskData2[Risiko beskrivelse])>20,\"…\",\"\"))","v":" "}]
[null,null,null,null,null,null,null,null,null,null,0,null,{"$f":"IF(PRODUCT(I17:J17)>0,CONCATENATE(\"x\",tblRiskData2[Ny_sannsynlighet]^4+tblRiskData2[Ny_konsekvens ]),\"\")","v":""},{"$f":"CONCATENATE(tblRiskData2[NR],\" \",LEFT(tblRiskData2[Risiko beskrivelse],20),IF(LEN(tblRiskData2[Risiko beskrivelse])>20,\"…\",\"\"))","v":" "}]
[null,null,null,null,null,null,null,null,null,null,0,null,{"$f":"IF(PRODUCT(I18:J18)>0,CONCATENATE(\"x\",tblRiskData2[Ny_sannsynlighet]^4+tblRiskData2[Ny_konsekvens ]),\"\")","v":""},{"$f":"CONCATENATE(tblRiskData2[NR],\" \",LEFT(tblRiskData2[Risiko beskrivelse],20),IF(LEN(tblRiskData2[Risiko beskrivelse])>20,\"…\",\"\"))","v":" "}]
[null,null,null,null,null,null,null,null,null,null,0,null,{"$f":"IF(PRODUCT(I19:J19)>0,CONCATENATE(\"x\",tblRiskData2[Ny_sannsynlighet]^4+tblRiskData2[Ny_konsekvens ]),\"\")","v":""},{"$f":"CONCATENATE(tblRiskData2[NR],\" \",LEFT(tblRiskData2[Risiko beskrivelse],20),IF(LEN(tblRiskData2[Risiko beskrivelse])>20,\"…\",\"\"))","v":" "}]
[null,null,null,null,null,null,null,null,null,null,0,null,{"$f":"IF(PRODUCT(I20:J20)>0,CONCATENATE(\"x\",tblRiskData2[Ny_sannsynlighet]^4+tblRiskData2[Ny_konsekvens ]),\"\")","v":""},{"$f":"CONCATENATE(tblRiskData2[NR],\" \",LEFT(tblRiskData2[Risiko beskrivelse],20),IF(LEN(tblRiskData2[Risiko beskrivelse])>20,\"…\",\"\"))","v":" "}]
[null,null,null,null,null,null,null,null,null,null,0,null,{"$f":"IF(PRODUCT(I21:J21)>0,CONCATENATE(\"x\",tblRiskData2[Ny_sannsynlighet]^4+tblRiskData2[Ny_konsekvens ]),\"\")","v":""},{"$f":"CONCATENATE(tblRiskData2[NR],\" \",LEFT(tblRiskData2[Risiko beskrivelse],20),IF(LEN(tblRiskData2[Risiko beskrivelse])>20,\"…\",\"\"))","v":" "}]
[null,null,null,null,null,null,null,null,null,null,0,null,{"$f":"IF(PRODUCT(I22:J22)>0,CONCATENATE(\"x\",tblRiskData2[Ny_sannsynlighet]^4+tblRiskData2[Ny_konsekvens ]),\"\")","v":""},{"$f":"CONCATENATE(tblRiskData2[NR],\" \",LEFT(tblRiskData2[Risiko beskrivelse],20),IF(LEN(tblRiskData2[Risiko beskrivelse])>20,\"…\",\"\"))","v":" "}]
[null,null,null,null,null,null,null,null,null,null,0,null,{"$f":"IF(PRODUCT(I23:J23)>0,CONCATENATE(\"x\",tblRiskData2[Ny_sannsynlighet]^4+tblRiskData2[Ny_konsekvens ]),\"\")","v":""},{"$f":"CONCATENATE(tblRiskData2[NR],\" \",LEFT(tblRiskData2[Risiko beskrivelse],20),IF(LEN(tblRiskData2[Risiko beskrivelse])>20,\"…\",\"\"))","v":" "}]
[null,null,null,null,null,null,null,null,null,null,{"$f":"IF(PRODUCT(I24:J24)>0,PRODUCT(I24,J24),0)","v":0},null,{"$f":"IF(PRODUCT(I24:J24)>0,CONCATENATE(\"x\",tblRiskData2[Ny_sannsynlighet]^4+tblRiskData2[Ny_konsekvens ]),\"\")","v":""},{"$f":"CONCATENATE(tblRiskData2[NR],\" \",LEFT(tblRiskData2[Risiko beskrivelse],20),IF(LEN(tblRiskData2[Risiko beskrivelse])>20,\"…\",\"\"))","v":" "}]
[null,null,null,null,null,null,null,null,null,null,{"$f":"IF(PRODUCT(I25:J25)>0,PRODUCT(I25,J25),0)","v":0},null,{"$f":"IF(PRODUCT(I25:J25)>0,CONCATENATE(\"x\",tblRiskData2[Ny_sannsynlighet]^4+tblRiskData2[Ny_konsekvens ]),\"\")","v":""},{"$f":"CONCATENATE(tblRiskData2[NR],\" \",LEFT(tblRiskData2[Risiko beskrivelse],20),IF(LEN(tblRiskData2[Risiko beskrivelse])>20,\"…\",\"\"))","v":" "}]
[null,null,null,null,null,null,null,null,null,null,0,null,{"$f":"IF(PRODUCT(I26:J26)>0,CONCATENATE(\"x\",tblRiskData2[Ny_sannsynlighet]^4+tblRiskData2[Ny_konsekvens ]),\"\")","v":""},{"$f":"CONCATENATE(tblRiskData2[NR],\" \",LEFT(tblRiskData2[Risiko beskrivelse],20),IF(LEN(tblRiskData2[Risiko beskrivelse])>20,\"…\",\"\"))","v":" "}]
[null,null,null,null,null,null,null,null,null,null,0,null,{"$f":"IF(PRODUCT(I27:J27)>0,CONCATENATE(\"x\",tblRiskData2[Ny_sannsynlighet]^4+tblRiskData2[Ny_konsekvens ]),\"\")","v":""},{"$f":"CONCATENATE(tblRiskData2[NR],\" \",LEFT(tblRiskData2[Risiko beskrivelse],20),IF(LEN(tblRiskData2[Risiko beskrivelse])>20,\"…\",\"\"))","v":" "}]
[null,null,null,null,null,null,null,null,null,null,{"$f":"IF(PRODUCT(I28:J28)>0,PRODUCT(I28,J28),0)","v":0},null,{"$f":"IF(PRODUCT(I28:J28)>0,CONCATENATE(\"x\",tblRiskData2[Ny_sannsynlighet]^4+tblRiskData2[Ny_konsekvens ]),\"\")","v":""},{"$f":"CONCATENATE(tblRiskData2[NR],\" \",LEFT(tblRiskData2[Risiko beskrivelse],20),IF(LEN(tblRiskData2[Risiko beskrivelse])>20,\"…\",\"\"))","v":" "}]

{"sheet":"Risikomatrise","index":5,"n_rows":12,"n_cols":17,"rows_kept":12,"cut":false,"hidden":false,"merged":[[3,2,3,7],[3,11,3,16]]}
[]
[]
[]
[null,null,"Dette er risikomatrise for de initielle verdiene",null,null,null,null,null,null,null,null,"Dette er risikomatrise etter at tiltakene er vurdert og risiko er beregnet på nytt"]
[]
[null,null,5,{"$f":"showriskmap(tblRiskData[[#All],[SearchString]],\"x626\",tblRiskData[[#All],[Display Name]],CHAR(10))","v":""},{"$f":"showriskmap(tblRiskData[[#All],[SearchString]],\"x627\",tblRiskData[[#All],[Display Name]],CHAR(10))","v":""},{"$f":"showriskmap(tblRiskData[[#All],[SearchString]],\"x628\",tblRiskData[[#All],[Display Name]],CHAR(10))","v":""},{"$f":"showriskmap(tblRiskData[[#All],[SearchString]],\"x629\",tblRiskData[[#All],[Display Name]],CHAR(10))","v":""},{"$f":"showriskmap(tblRiskData[[#All],[SearchString]],\"x630\",tblRiskData[[#All],[Display Name]],CHAR(10))","v":""},null,null,null,5,{"$f":"showriskmap2(tblRiskData2[[#All],[SearchString2]],\"x626\",tblRiskData2[[#All],[Display Name2]],CHAR(10))","v":""},{"$f":"showriskmap2(tblRiskData2[[#All],[SearchString2]],\"x627\",tblRiskData2[[#All],[Display Name2]],CHAR(10))","v":""},{"$f":"showriskmap2(tblRiskData2[[#All],[SearchString2]],\"x628\",tblRiskData2[[#All],[Display Name2]],CHAR(10))","v":""},{"$f":"showriskmap2(tblRiskData2[[#All],[SearchString2]],\"x629\",tblRiskData2[[#All],[Display Name2]],CHAR(10))","v":""},{"$f":"showriskmap2(tblRiskData2[[#All],[SearchString2]],\"x630\",tblRiskData2[[#All],[Display Name2]],CHAR(10))","v":""}]
[null,null,4,{"$f":"showriskmap(tblRiskData[[#All],[SearchString]],\"x257\",tblRiskData[[#All],[Display Name]],CHAR(10))","v":""},{"$f":"showriskmap(tblRiskData[[#All],[SearchString]],\"x258\",tblRiskData[[#All],[Display Name]],CHAR(10))","v":""},{"$f":"showriskmap(tblRiskData[[#All],[SearchString]],\"x259\",tblRiskData[[#All],[Display Name]],CHAR(10))","v":""},{"$f":"showriskmap(tblRiskData[[#All],[SearchString]],\"x260\",tblRiskData[[#All],[Display Name]],CHAR(10))","v":""},{"$f":"showriskmap(tblRiskData[[#All],[SearchString]],\"x261\",tblRiskData[[#All],[Display Name]],CHAR(10))","v":""},null,null,null,4,{"$f":"showriskmap2(tblRiskData2[[#All],[SearchString2]],\"x257\",tblRiskData2[[#All],[Display Name2]],CHAR(10))","v":""},{"$f":"showriskmap2(tblRiskData2[[#All],[SearchString2]],\"x258\",tblRiskData2[[#All],[Display Name2]],CHAR(10))","v":""},{"$f":"showriskmap2(tblRiskData2[[#All],[SearchString2]],\"x259\",tblRiskData2[[#All],[Display Name2]],CHAR(10))","v":""},{"$f":"showriskmap2(tblRiskData2[[#All],[SearchString2]],\"x260\",tblRiskData2[[#All],[Display Name2]],CHAR(10))","v":""},{"$f":"showriskmap2(tblRiskData2[[#All],[SearchString2]],\"x261\",tblRiskData2[[#All],[Display Name2]],CHAR(10))","v":""}]
[null,null,3,{"$f":"showriskmap(tblRiskData[[#All],[SearchString]],\"x82\",tblRiskData[[#All],[Display Name]],CHAR(10))","v":""},{"$f":"showriskmap(tblRiskData[[#All],[SearchString]],\"x83\",tblRiskData[[#All],[Display Name]],CHAR(10))","v":""},{"$f":"showriskmap(tblRiskData[[#All],[SearchString]],\"x84\",tblRiskData[[#All],[Display Name]],CHAR(10))","v":""},{"$f":"showriskmap(tblRiskData[[#All],[SearchString]],\"x85\",tblRiskData[[#All],[Display Name]],CHAR(10))","v":""},{"$f":"showriskmap(tblRiskData[[#All],[SearchString]],\"x86\",tblRiskData[[#All],[Display Name]],CHAR(10))","v":""},null,null,null,3,{"$f":"showriskmap2(tblRiskData2[[#All],[SearchString2]],\"x82\",tblRiskData2[[#All],[Display Name2]],CHAR(10))","v":""},{"$f":"showriskmap2(tblRiskData2[[#All],[SearchString2]],\"x83\",tblRiskData2[[#All],[Display Name2]],CHAR(10))","v":""},{"$f":"showriskmap2(tblRiskData2[[#All],[SearchString2]],\"x84\",tblRiskData2[[#All],[Display Name2]],CHAR(10))","v":""},{"$f":"showriskmap2(tblRiskData2[[#All],[SearchString2]],\"x85\",tblRiskData2[[#All],[Display Name2]],CHAR(10))","v":""},{"$f":"showriskmap2(tblRiskData2[[#All],[SearchString2]],\"x86\",tblRiskData2[[#All],[Display Name2]],CHAR(10))","v":""}]
[null,null,2,{"$f":"showriskmap(tblRiskData[[#All],[SearchString]],\"x17\",tblRiskData[[#All],[Display Name]],CHAR(10))","v":""},{"$f":"showriskmap(tblRiskData[[#All],[SearchString]],\"x18\",tblRiskData[[#All],[Display Name]],CHAR(10))","v":""},{"$f":"showriskmap(tblRiskData[[#All],[SearchString]],\"x19\",tblRiskData[[#All],[Display Name]],CHAR(10))","v":""},{"$f":"showriskmap(tblRiskData[[#All],[SearchString]],\"x20\",tblRiskData[[#All],[Display Name]],CHAR(10))","v":""},{"$f":"showriskmap(tblRiskData[[#All],[SearchString]],\"x21\",tblRiskData[[#All],[Display Name]],CHAR(10))","v":""},null,null,null,2,{"$f":"showriskmap2(tblRiskData2[[#All],[SearchString2]],\"x17\",tblRiskData2[[#All],[Display Name2]],CHAR(10))","v":""},{"$f":"showriskmap2(tblRiskData2[[#All],[SearchString2]],\"x18\",tblRiskData2[[#All],[Display Name2]],CHAR(10))","v":""},{"$f":"showriskmap2(tblRiskData2[[#All],[SearchString2]],\"x19\",tblRiskData2[[#All],[Display Name2]],CHAR(10))","v":""},{"$f":"showriskmap2(tblRiskData2[[#All],[SearchString2]],\"x20\",tblRiskData2[[#All],[Display Name2]],CHAR(10))","v":""},{"$f":"showriskmap2(tblRiskData2[[#All],[SearchString2]],\"x21\",tblRiskData2[[#All],[Display Name2]],CHAR(10))","v":""}]
[null,"Sannsynlighet  →",1,{"$f":"showriskmap(tblRiskData[[#All],[SearchString]],\"x2\",tblRiskData[[#All],[Display Name]],CHAR(10))","v":""},{"$f":"showriskmap(tblRiskData[[#All],[SearchString]],\"x3\",tblRiskData[[#All],[Display Name]],CHAR(10))","v":""},{"$f":"showriskmap(tblRiskData[[#All],[SearchString]],\"x4\",tblRiskData[[#All],[Display Name]],CHAR(10))","v":""},{"$f":"showriskmap(tblRiskData[[#All],[SearchString]],\"x5\",tblRiskData[[#All],[Display Name]],CHAR(10))","v":""},{"$f":"showriskmap(tblRiskData[[#All],[SearchString]],\"x6\",tblRiskData[[#All],[Display Name]],CHAR(10))","v":""},null,null,"Sannsynlighet  →",1,{"$f":"showriskmap2(tblRiskData2[[#All],[SearchString2]],\"x2\",tblRiskData2[[#All],[Display Name2]],CHAR(10))","v":""},{"$f":"showriskmap2(tblRiskData2[[#All],[SearchString2]],\"x3\",tblRiskData2[[#All],[Display Name2]],CHAR(10))","v":""},{"$f":"showriskmap2(tblRiskData2[[#All],[SearchString2]],\"x4\",tblRiskData2[[#All],[Display Name2]],CHAR(10))","v":""},{"$f":"showriskmap2(tblRiskData2[[#All],[SearchString2]],\"x5\",tblRiskData2[[#All],[Display Name2]],CHAR(10))","v":""},{"$f":"showriskmap2(tblRiskData2[[#All],[SearchString2]],\"x6\",tblRiskData2[[#All],[Display Name2]],CHAR(10))","v":""}]
[null,null,null,1,2,3,4,5,null,null,null,null,1,2,3,4,5]
[null,null,null,"Konsekvens →",null,null,null,null,null,null,null,null,"Konsekvens →"]

{"sheet":"Setup","index":6,"n_rows":6,"n_cols":7,"rows_kept":6,"cut":false,"hidden":true,"merged":[]}
[null,null,"Sannsynlighet",null,"Konsekvens",null,"Akseptabel"]
[null,null,1,null,1,null,"JA"]
[null,null,2,null,2,null,"NEI"]
[null,null,3,null,3,null,"USIKKER"]
[null,null,4,null,4]
[null,null,5,null,5]